bitfinex/quotes_ETHUSD_20260106
["timestamp","ask_amount","ask_price","bid_price","bid_amount"]
[1767697472798,0.68595766,3230.8,3229.9,3.9380236]
[1767697472995,0.70766948,3230.8,3229.8,0.001]
[1767697473396,0.02171182,3230.6,3229.8,0.96410478]
[1767697474518,0.68978951,3230.7,3229.9,0.96310478]
[1767697474716,0.02171182,3230.8,3230.0,0.96310478]
[1767697474916,0.02171182,3230.8,3230.1,0.96310478]
[1767697475292,3.11877759,3231.0,3230.1,0.96310478]
[1767697475613,0.002,3231.0,3230.1,0.96310478]
[1767697475829,0.002,3231.0,3230.3,0.96310478]
[1767697476694,0.002,3231.0,3230.4,0.96310478]
[1767697477625,0.002,3231.0,3230.6,0.96410478]
[1767697478993,0.002,3231.0,3230.7,0.96310478]
[1767697479394,0.002,3231.3,3231.0,0.96310478]
[1767697481120,0.002,3231.8,3231.3,0.96310478]
[1767697482626,0.002,3231.8,3231.0,3.09500445]
[1767697482840,0.002,3231.8,3231.1,0.96310478]
[1767697483353,0.002,3231.8,3231.2,0.96310478]
[1767697483937,0.002,3231.8,3231.0,0.70321555]
[1767697484266,0.002,3231.8,3231.0,0.96310478]
[1767697484421,0.68795766,3231.8,3231.0,0.96310478]
[1767697484621,0.68795766,3231.8,3230.8,0.811]
[1767697485132,3.09434662,3231.7,3230.9,0.96310478]
[1767697485333,0.68595766,3231.7,3230.6,0.96410478]
[1767697485540,0.68595766,3231.5,3230.6,0.96410478]
[1767697485859,0.68595766,3231.5,3230.6,0.001]
[1767697487189,0.68595766,3231.2,3230.6,0.001]
[1767697489247,0.811,3231.5,3230.6,0.001]
[1767697489248,0.68595766,3231.0,3230.6,0.001]
[1767697489474,6.875417,3231.3,3230.6,0.001]
[1767697489777,0.68971288,3231.2,3230.6,0.001]
[1767697490157,0.002,3231.1,3230.6,0.001]
[1767697491462,3.09692123,3231.1,3230.6,0.001]
[1767697491659,3.78287889,3231.1,3230.6,0.001]
[1767697491956,6.87780012,3231.1,3230.6,0.001]
[1767697492265,0.7567513,3231.0,3230.6,0.001]
[1767697494083,3.78287889,3231.1,3230.6,0.96410478]
[1767697494084,3.90792123,3231.1,3230.6,0.96410478]
[1767697496094,3.90792123,3231.1,3230.6,0.001]
[1767697496666,7.00284246,3231.1,3230.6,0.001]
[1767697497266,0.813,3231.1,3230.6,0.001]
[1767697497466,0.002,3231.1,3230.6,0.001]
[1767697497985,0.002,3231.1,3230.6,0.99024223]
[1767697500997,0.002,3231.1,3230.6,0.001]
[1767697501203,0.68975111,3231.1,3230.6,0.001]
[1767697502206,3.09501702,3231.0,3230.6,0.001]
[1767697502692,3.78471687,3231.1,3230.6,0.001]
[1767697502872,3.09696576,3231.1,3230.6,0.001]
[1767697503072,0.002,3231.1,3230.9,0.001]
[1767697503803,3.09693676,3231.1,3230.9,0.001]
[1767697504375,0.45938944,3231.0,3230.9,0.001]
[1767697504796,0.45938944,3231.0,3230.6,0.001]
[1767697504996,0.68595766,3230.9,3230.6,0.001]
[1767697508175,0.68595766,3230.7,3229.9,1.71750846]
[1767697508394,0.68595766,3230.6,3229.9,0.90650846]
[1767697510802,0.70766948,3230.5,3229.8,0.001]
[1767697511302,0.68595766,3230.5,3229.8,0.001]
[1767697512086,0.70766948,3230.5,3229.8,0.001]
[1767697512302,1.37582254,3230.4,3229.8,0.001]
[1767697512804,3.0956877,3230.3,3229.8,0.001]
[1767697513310,0.68595766,3230.2,3229.8,0.001]
[1767697513806,3.0956877,3230.3,3229.8,0.001]
[1767697514312,0.68595766,3230.2,3229.8,0.001]
[1767697515899,0.68595766,3230.1,3229.8,0.001]
[1767697516406,0.68595766,3230.1,3229.1,0.811]
[1767697516407,0.70766948,3230.0,3229.1,0.811]
[1767697516796,0.70766948,3230.0,3228.9,0.001]
[1767697516797,0.68595766,3229.8,3228.9,0.001]
[1767697517404,0.68595766,3229.8,3228.9,0.03197029]
[1767697517916,0.68595766,3229.8,3228.9,0.90750846]
[1767697518304,0.68595766,3229.8,3229.0,0.40046089]
[1767697518927,0.68595766,3229.8,3229.1,0.90650846]
[1767697519229,0.68595766,3229.7,3228.9,0.001]
[1767697520702,3.09622525,3229.8,3229.0,0.90650846]
[1767697520897,6.89277227,3229.8,3229.0,0.90650846]
[1767697521101,7.57872993,3229.8,3229.0,0.90650846]
[1767697521502,0.68595766,3229.7,3228.9,0.001]
[1767697522520,0.70766948,3229.7,3228.9,0.001]
[1767697522708,0.68595766,3229.7,3228.9,0.001]
[1767697522910,3.7825081,3229.4,3228.9,0.001]
[1767697523226,0.49285512,3229.6,3228.9,0.90750846]
[1767697523436,3.09640835,3229.6,3228.9,0.90750846]
[1767697523630,6.1928167,3229.6,3228.9,0.90750846]
[1767697523814,0.02171182,3229.5,3228.9,0.90750846]
[1767697524214,0.70766948,3229.5,3228.9,0.90750846]
[1767697525124,6.19310088,3229.4,3228.9,0.001]
[1767697525332,0.69007704,3229.3,3228.9,0.001]
[1767697525912,0.71178886,3229.3,3228.9,0.001]
[1767697527226,3.09674222,3229.2,3228.9,0.001]
[1767697527826,6.19348444,3229.2,3228.9,0.001]
[1767697528026,0.68595766,3229.1,3228.5,0.90750846]
[1767697528229,1.44508076,3229.1,3228.5,0.001]
[1767697529441,0.7591231,3229.1,3228.5,0.90750846]
[1767697529646,0.02171182,3229.2,3228.5,0.90750846]
[1767697530052,0.83271182,3229.5,3228.5,0.90750846]
[1767697530344,0.68595766,3229.6,3228.5,0.90750846]
[1767697530345,3.90735868,3229.6,3228.7,0.90650846]
[1767697530528,7.00373673,3229.6,3228.7,0.90650846]
[1767697532046,0.02171182,3229.5,3228.7,0.90650846]
[1767697532235,0.77114062,3229.4,3228.7,0.90650846]
[1767697533043,0.02171182,3229.3,3228.7,0.90650846]
[1767697533922,6.19348444,3229.2,3228.7,0.90650846]
[1767697534148,3.09674222,3229.2,3228.7,0.90650846]
[1767697536053,3.11836737,3229.3,3228.7,0.90650846]
[1767697538441,7.32692407,3229.3,3228.7,0.90650846]
[1767697538643,4.23026852,3229.3,3228.7,0.90650846]
[1767697539047,4.23026852,3229.3,3229.0,0.001]
[1767697539444,8.01288173,3229.3,3228.5,0.94491027]
[1767697540324,0.68595766,3229.2,3228.5,0.94491027]
[1767697540524,0.80128817,3229.1,3228.5,0.94491027]
[1767697541455,3.09665555,3229.3,3228.5,0.94491027]
[1767697541828,6.1933111,3229.3,3228.5,0.94491027]
[1767697543060,0.68595766,3229.3,3228.5,0.94491027]
[1767697545460,3.09674222,3229.2,3228.5,0.94491027]
[1767697547165,3.09669335,3229.3,3228.5,0.94491027]
[1767697547370,0.811,3229.6,3228.6,0.94391027]
[1767697547572,1.35215903,3229.6,3228.6,0.94391027]
[1767697547766,0.68595766,3229.5,3228.6,0.94391027]
[1767697548269,0.70766948,3229.5,3228.6,0.94391027]
[1767697548976,1.51866948,3229.5,3228.6,0.94391027]
[1767697549275,0.68595766,3229.4,3228.6,0.94391027]
[1767697549745,6.19329266,3229.3,3228.6,0.94391027]
[1767697550474,6.21500448,3229.3,3228.6,0.94391027]
[1767697551073,6.21500448,3229.3,3228.8,0.001]
[1767697551376,0.002,3229.0,3228.8,0.001]
[1767697552090,0.002,3229.0,3228.8,0.94491027]
[1767697552393,0.002,3229.0,3228.8,0.94291027]
[1767697553052,0.002,3229.0,3228.5,0.94491027]
[1767697553492,0.002,3229.0,3228.6,0.94391027]
[1767697558598,0.002,3229.3,3229.0,0.914826]
[1767697558905,0.02171182,3229.9,3229.0,0.914826]
[1767697558906,0.83371182,3229.9,3229.0,0.914826]
[1767697559501,0.70866948,3230.1,3229.0,0.914826]
[1767697559697,0.812,3230.0,3229.0,0.914826]
[1767697559898,0.02171182,3230.1,3229.0,0.914826]
[1767697560094,0.812,3230.0,3229.0,0.914826]
[1767697560492,0.02171182,3230.3,3229.2,0.914826]
[1767697560825,3.09562939,3230.4,3229.4,0.914826]
[1767697561230,6.87821644,3230.4,3229.4,0.914826]
[1767697561742,3.78258705,3230.4,3229.4,0.914826]
[1767697561900,3.09562939,3230.4,3229.4,0.914826]
[1767697562329,0.68895766,3230.6,3229.4,0.914826]
[1767697562533,3.11915003,3230.6,3229.7,0.99781548]
[1767697562770,3.65027601,3230.6,3229.7,0.99781548]
[1767697563268,0.002,3230.6,3229.7,0.99781548]
[1767697563841,0.002,3230.1,3229.7,0.99781548]
[1767697564666,0.002,3230.1,3229.9,0.99781548]
[1767697565362,0.002,3230.4,3230.1,0.99781548]
[1767697565530,0.002,3230.4,3229.8,0.99781548]
[1767697565736,0.002,3230.4,3229.9,0.86946006]
[1767697566279,0.68895766,3230.6,3230.0,4.60059035]
[1767697566471,0.68895766,3230.6,3230.0,5.59840583]
[1767697566666,0.002,3230.6,3230.1,3.09587938]
[1767697566976,0.002,3230.6,3230.2,0.86942852]
[1767697568784,0.002,3230.6,3230.2,3.9652055]
[1767697569664,0.002,3230.6,3230.2,0.86942852]
[1767697569983,0.002,3230.6,3230.3,0.99781548]
[1767697578598,0.002,3230.6,3230.2,0.001]
[1767697578813,0.68895766,3230.6,3230.2,0.001]
[1767697581599,0.002,3230.6,3230.2,0.001]
[1767697594002,0.002,3230.6,3230.2,0.99727446]
[1767697595216,0.002,3230.6,3230.2,1.40659807]
[1767697598192,0.002,3230.6,3230.3,0.99627446]
[1767697598621,0.002,3230.6,3230.3,0.98272778]
[1767697599022,0.002,3231.1,3230.6,0.99627446]
[1767697599520,0.002,3231.1,3230.7,0.99627446]
[1767697600696,0.002,3231.1,3230.7,0.99427446]
[1767697601622,0.002,3231.1,3230.3,0.99627446]
[1767697602508,0.002,3231.1,3230.4,0.99627446]
[1767697602914,0.002,3231.1,3230.5,0.99627446]
[1767697604125,0.002,3231.1,3230.5,0.99427446]
[1767697604331,0.002,3231.1,3230.5,0.99227446]
[1767697606807,1.02035492,3231.1,3230.3,0.99627446]
[1767697607132,0.002,3231.1,3230.5,0.99627446]
[1767697607361,0.002,3231.1,3230.6,0.99627446]
[1767697607900,0.002,3231.1,3230.7,0.99627446]
[1767697609221,0.002,3231.4,3231.0,0.99627446]
[1767697609430,0.70850434,3231.4,3230.7,0.99627446]
[1767697609606,0.70850434,3231.4,3230.8,0.71870639]
[1767697609806,0.70850434,3231.4,3230.8,3.81390295]
[1767697610236,0.70850434,3231.4,3230.8,0.71870639]
[1767697610745,0.70850434,3231.4,3230.8,3.81391348]
[1767697611034,0.70850434,3231.4,3230.8,0.71870639]
[1767697612018,0.70850434,3231.4,3230.6,3.09536431]
[1767697612213,0.70850434,3231.4,3230.5,4.0917693]
[1767697612445,0.70650434,3231.3,3230.5,4.0917693]
[1767697612642,0.002,3230.8,3230.5,4.0917693]
[1767697612947,0.002,3231.1,3230.6,0.71873523]
[1767697613441,0.002,3231.1,3230.7,0.99627446]
[1767697622057,0.002,3231.1,3230.4,0.97657151]
[1767697622624,0.002,3231.1,3230.5,0.97657151]
[1767697624060,0.002,3231.1,3230.4,3.09557442]
[1767697624240,0.70850434,3231.1,3230.3,0.97657151]
[1767697624641,0.70850434,3231.1,3230.4,0.97657151]
[1767697625230,0.002,3231.1,3230.5,0.97657151]
[1767697625432,0.002,3231.1,3230.6,0.97657151]
[1767697625835,0.002,3231.1,3230.7,0.97757151]
[1767697627760,0.002,3231.1,3230.8,0.97657151]
[1767697629359,0.002,3231.1,3230.9,0.97657151]
[1767697630533,0.002,3231.4,3231.0,0.97657151]
[1767697633036,0.002,3231.4,3230.7,0.001]
[1767697633245,0.72821616,3231.2,3230.7,0.001]
[1767697633559,3.82309635,3231.2,3230.7,0.001]
[1767697635580,0.70650434,3231.1,3230.7,0.001]
[1767697635882,1.3982871,3231.1,3230.7,0.001]
[1767697637679,4.49328886,3231.1,3230.7,0.001]
[1767697637886,0.002,3230.9,3230.7,0.001]
[1767697639998,3.80367091,3230.9,3230.7,0.001]
[1767697640296,3.09716657,3230.9,3230.7,0.001]
[1767697640496,0.30971666,3230.8,3230.7,0.001]
[1767697640860,0.30971666,3230.8,3230.3,0.97657151]
[1767697642676,0.70850434,3230.9,3230.3,0.97657151]
[1767697642879,3.80361879,3230.9,3230.3,0.97657151]
[1767697644385,0.70850434,3230.9,3230.3,0.97657151]
[1767697644588,0.002,3230.9,3230.3,0.97657151]
[1767697649300,0.70850434,3230.9,3230.2,0.001]
[1767697649503,1.42025013,3230.8,3230.2,0.001]
[1767697649808,0.70650434,3230.7,3230.2,0.001]
[1767697652587,3.80182784,3230.7,3230.2,0.001]
[1767697652786,0.70650434,3230.6,3230.2,0.001]
[1767697652991,0.72821616,3230.6,3230.2,0.001]
[1767697653319,1.39839066,3230.5,3229.8,0.98664914]
[1767697654815,4.49389639,3230.5,3229.8,0.98664914]
[1767697655015,0.70650434,3230.4,3229.8,0.98664914]
[1767697656114,3.78739205,3230.5,3229.8,0.98664914]
[1767697656692,4.49389639,3230.5,3229.8,0.98664914]
[1767697656892,3.85674153,3230.4,3229.8,0.98664914]
[1767697662029,4.56324587,3230.4,3229.8,0.98664914]
[1767697662618,4.56324587,3230.4,3230.1,0.001]
[1767697662818,0.002,3230.2,3230.1,0.001]
[1767697665413,0.70850434,3230.2,3229.4,0.98664914]
[1767697665608,0.70650434,3230.1,3229.4,0.98664914]
[1767697667033,0.38787115,3230.2,3229.5,0.98664914]
[1767697669128,4.19022824,3230.2,3229.5,0.98664914]
[1767697671919,4.19022824,3230.2,3229.0,0.98664914]
[1767697671920,0.72821616,3230.0,3229.0,0.98664914]
[1767697674831,3.82421365,3230.0,3229.1,0.98664914]
[1767697675137,3.11770931,3230.0,3229.1,0.98664914]
[1767697675438,3.09599749,3230.0,3229.1,0.98664914]
[1767697676038,3.09599749,3230.0,3229.4,0.001]
[1767697676236,3.78904653,3230.0,3229.5,0.93910827]
[1767697676432,3.78904653,3230.0,3229.5,0.93610827]
[1767697676641,3.78904653,3230.0,3229.5,0.93410827]
[1767697676809,3.78904653,3230.0,3229.5,0.93010827]
[1767697677012,3.78904653,3230.0,3229.5,0.92510827]
[1767697677341,3.78904653,3230.0,3229.5,0.92410827]
[1767697677546,3.78904653,3230.0,3229.5,0.92210827]
[1767697677839,3.78904653,3230.0,3229.5,0.92010827]
[1767697678138,3.90782716,3229.9,3229.5,0.91710827]
[1767697678442,3.90782716,3229.9,3229.5,0.91310827]
[1767697678626,3.90782716,3229.9,3229.5,0.91210827]
[1767697678938,3.90782716,3229.9,3229.5,0.90910827]
[1767697679440,0.81171229,3229.9,3229.5,0.90810827]
[1767697679643,3.09599902,3230.0,3229.5,0.90410827]
[1767697681535,6.19199804,3230.0,3229.5,0.90410827]
[1767697682311,3.09599902,3230.0,3229.5,0.90410827]
[1767697684137,6.19199804,3230.0,3229.5,0.90410827]
[1767697685745,6.19199804,3230.0,3229.4,0.001]
[1767697685940,6.19199804,3230.0,3229.0,0.94016514]
[1767697685941,0.74650434,3229.8,3229.0,0.94016514]
[1767697686952,6.19252562,3229.7,3229.0,0.94016514]
[1767697687151,6.93902996,3229.7,3229.0,0.94016514]
[1767697688335,3.84276715,3229.7,3229.3,0.001]
[1767697688646,3.09618666,3229.8,3229.3,0.94116514]
[1767697688821,3.56331843,3229.8,3229.3,0.94116514]
[1767697689453,0.74650434,3229.7,3229.3,0.001]
[1767697689945,3.56334661,3229.8,3229.3,0.94116514]
[1767697693551,6.65956145,3229.8,3229.3,0.001]
[1767697695157,3.56334661,3229.8,3229.3,0.001]
[1767697696361,0.82386639,3229.7,3229.3,0.001]
[1767697697650,0.82386639,3229.7,3229.3,0.94116514]
[1767697697858,3.92012998,3229.7,3229.3,0.94116514]
[1767697698028,0.82386639,3229.7,3229.3,0.94116514]
[1767697698336,3.92013678,3229.7,3229.3,0.94116514]
[1767697699147,0.82386639,3229.7,3229.3,0.94116514]
[1767697699346,3.09621029,3229.8,3229.3,0.94116514]
[1767697700843,0.002,3229.5,3229.3,0.94116514]
[1767697701742,0.002,3229.8,3229.5,0.94016514]
[1767697704453,0.002,3229.8,3229.3,0.001]
[1767697709572,0.002,3229.8,3229.3,0.94116514]
[1767697710872,0.79558973,3229.8,3229.3,0.94116514]
[1767697712371,3.09626281,3229.7,3229.3,0.94116514]
[1767697712569,3.09626281,3229.7,3229.3,0.001]
[1767697713046,4.07388412,3229.7,3229.3,0.001]
[1767697713373,7.17014693,3229.7,3229.3,0.001]
[1767697713552,0.79657367,3229.6,3229.3,0.001]
[1767697714273,0.97762131,3229.5,3229.3,0.001]
[1767697715174,0.97762131,3229.7,3229.3,0.001]
[1767697715655,4.07388988,3229.7,3229.3,0.001]
[1767697715841,0.97762131,3229.6,3229.3,0.001]
[1767697716680,0.002,3229.8,3229.3,0.001]
[1767697716846,0.97762131,3229.9,3229.3,0.001]
[1767697717245,3.09592441,3230.1,3229.4,0.95206017]
[1767697718875,6.19369491,3230.2,3229.4,0.95206017]
[1767697719174,6.99409596,3230.2,3229.4,0.95206017]
[1767697719554,0.002,3230.2,3229.4,0.95206017]
[1767697720077,0.002,3230.2,3229.5,0.95206017]
[1767697720246,0.002,3230.5,3230.1,0.95206017]
[1767697723982,0.002,3230.5,3230.2,0.95206017]
[1767697724185,0.002,3230.9,3230.4,0.95206017]
[1767697724401,0.002,3230.9,3230.2,0.95206017]
[1767697724695,0.002,3230.9,3230.3,0.71438009]
[1767697724878,0.002,3230.9,3230.4,0.95206017]
[1767697726580,0.002,3230.5,3230.4,0.95206017]
[1767697726876,0.002,3230.9,3230.3,0.71438009]
[1767697727079,0.002,3230.9,3230.3,3.81005219]
[1767697727297,0.002,3230.9,3230.4,0.47621124]
[1767697728689,0.002,3230.9,3230.4,1.42827141]
[1767697728902,0.002,3230.9,3230.5,0.95206017]
[1767697729056,0.002,3231.1,3230.5,0.95206017]
[1767697729887,0.97962131,3231.2,3230.6,4.0474604]
[1767697730189,0.002,3231.2,3230.7,0.40474604]
[1767697730393,0.002,3231.2,3230.8,0.95206017]
[1767697733690,0.02171182,3230.4,3229.8,0.95206017]
[1767697733889,0.02171182,3230.2,3229.8,0.95206017]
[1767697734088,0.02171182,3230.4,3229.8,0.95206017]
[1767697734290,0.02171182,3230.2,3229.8,0.95206017]
[1767697734501,0.02171182,3230.4,3230.2,0.0191062]
[1767697738969,0.02171182,3230.6,3230.2,0.0191062]
[1767697739995,0.02171182,3230.6,3230.3,0.96001818]
[1767697740907,0.02171182,3230.4,3230.2,0.0191062]
[1767697741109,0.02171182,3230.6,3230.2,0.0191062]
[1767697741308,0.02171182,3230.4,3230.2,0.0191062]
[1767697744100,0.02171182,3230.8,3230.2,0.42035837]
[1767697744396,0.02171182,3230.8,3230.3,0.40125217]
[1767697744397,0.02171182,3230.6,3230.3,0.40125217]
[1767697745302,0.02171182,3230.6,3230.2,3.11487475]
[1767697745502,0.02171182,3230.6,3230.3,0.39258747]
[1767697746016,0.95440568,3230.7,3230.3,0.39258747]
[1767697746391,0.02171182,3230.6,3230.3,1.36579356]
[1767697746577,0.02171182,3230.6,3230.3,0.97320609]
[1767697750106,0.02171182,3230.8,3230.3,0.97320609]
[1767697750319,0.02171182,3230.6,3230.2,0.0191062]
[1767697750486,0.02171182,3230.6,3230.1,0.811]
[1767697750890,0.02171182,3230.6,3230.0,0.97320609]
[1767697751079,0.02171182,3230.5,3230.0,0.97320609]
[1767697751278,0.02171182,3230.5,3230.0,1.46123342]
[1767697752211,0.02171182,3230.5,3230.0,4.55718497]
[1767697753506,0.02171182,3230.8,3230.1,0.97320609]
[1767697754010,0.02171182,3230.8,3230.2,0.97320609]
[1767697754194,0.02171182,3230.6,3230.2,0.97320609]
[1767697754400,0.02171182,3230.7,3230.2,0.4557185]
[1767697756114,0.02171182,3230.5,3230.2,0.4557185]
[1767697759617,0.02171182,3230.7,3230.2,4.52470357]
[1767697760614,0.02171182,3230.7,3230.2,1.42892459]
[1767697760988,0.02171182,3230.7,3230.2,0.97320609]
[1767697761820,0.02171182,3230.7,3230.5,0.001]
[1767697765600,3.11667726,3231.1,3230.5,0.001]
[1767697765805,0.02171182,3230.9,3230.5,0.97420609]
[1767697770442,0.02171182,3231.1,3230.5,0.97420609]
[1767697770637,0.02171182,3230.9,3230.5,1.38118666]
[1767697771245,0.02171182,3230.9,3230.5,0.97420609]
[1767697772227,0.02171182,3231.1,3230.6,0.96889848]
[1767697772554,0.02171182,3231.1,3230.6,4.06428593]
[1767697772726,0.02171182,3231.1,3230.7,0.96889848]
[1767697773433,0.002,3231.4,3230.9,0.96889848]
[1767697773638,0.002,3231.4,3231.1,0.01910088]
[1767697774139,0.02171182,3231.5,3231.1,0.01910088]
[1767697774503,1.00476318,3231.5,3231.1,0.01910088]
[1767697777232,0.002,3231.7,3231.1,0.98799936]
[1767697777404,0.02171182,3231.9,3231.2,5.56265061]
[1767697777600,0.02171182,3231.9,3231.3,0.655065]
[1767697777601,0.02171182,3231.7,3231.3,0.655065]
[1767697778815,0.02171182,3231.9,3231.3,0.655065]
[1767697779734,0.98305136,3232.0,3231.3,0.655065]
[1767697780060,0.98305136,3232.0,3231.3,4.71868582]
[1767697780222,0.98305136,3232.0,3231.4,0.96889848]
[1767697780425,0.02171182,3232.2,3231.6,0.96889848]
[1767697781004,0.02171182,3232.2,3231.6,0.96689848]
[1767697783129,1.00476318,3232.3,3231.6,0.96689848]
[1767697785145,0.002,3232.4,3231.7,0.96889848]
[1767697785449,0.002,3232.4,3231.8,1.52516354]
[1767697787318,0.002,3232.0,3231.8,0.55626506]
[1767697787516,0.002,3232.3,3231.8,0.55626506]
[1767697787720,0.02171182,3232.3,3231.8,0.55626506]
[1767697787921,1.00476318,3232.5,3231.9,0.96889848]
[1767697787922,0.02171182,3232.2,3231.9,0.96889848]
[1767697788115,0.02171182,3232.2,3231.8,0.55626506]
[1767697788321,3.11529823,3232.5,3231.6,0.811]
[1767697788508,0.02171182,3231.9,3231.7,0.96889848]
[1767697788709,0.02171182,3231.7,3231.5,0.96889848]
[1767697788938,0.02171182,3231.7,3231.4,0.001]
[1767697789113,0.02171182,3231.8,3231.4,0.001]
[1767697789611,0.02171182,3231.9,3231.5,0.96889848]
[1767697790011,0.02171182,3231.9,3231.4,0.001]
[1767697790237,0.02171182,3231.9,3231.5,0.96889848]
[1767697790939,0.02171182,3232.0,3231.4,1.00084481]
[1767697791139,0.02171182,3232.3,3231.5,0.40955627]
[1767697791440,0.02171182,3232.3,3231.6,0.96889848]
[1767697791736,0.02171182,3232.1,3231.6,0.96889848]
[1767697791939,0.02171182,3232.3,3231.6,0.96889848]
[1767697794448,0.02171182,3232.3,3231.4,3.09563145]
[1767697794449,0.00261803,3232.2,3231.8,0.96889848]
[1767697794663,0.04442467,3232.5,3231.8,0.96889848]
[1767697794829,0.02171182,3232.3,3231.8,0.96889848]
[1767697795029,0.02171182,3232.5,3231.8,0.96889848]
[1767697795326,0.02171182,3232.3,3231.8,0.96889848]
[1767697795534,0.02171182,3232.5,3231.8,0.96889848]
[1767697795843,0.02171182,3232.3,3231.8,0.96889848]
[1767697796045,1e-08,3232.3,3231.8,0.96889848]
[1767697796427,0.02171182,3232.5,3232.3,0.019094]
[1767697796644,1e-08,3232.5,3232.3,0.019094]
[1767697798147,0.02171182,3232.7,3232.4,0.94144722]
[1767697798313,0.02171182,3232.7,3232.2,0.94144722]
[1767697798314,0.01520192,3232.5,3232.2,0.94144722]
[1767697798516,0.01520192,3232.5,3231.8,7.6879858]
[1767697798517,0.02171182,3232.7,3231.9,0.94144722]
[1767697798728,0.01515901,3232.5,3232.4,0.94144722]
[1767697798946,3e-08,3232.5,3232.4,0.94144722]
[1767697799150,3e-08,3232.5,3232.1,0.94144722]
[1767697799443,3e-08,3232.5,3232.0,0.8629433]
[1767697799657,0.02171182,3232.5,3232.0,1.80439052]
[1767697799860,0.002,3232.2,3232.1,1.12198627]
[1767697800080,1e-08,3232.2,3232.1,1.12198627]
[1767697800732,0.002,3232.5,3232.2,0.94144722]
[1767697801247,0.02171182,3233.0,3232.5,0.9972655]
[1767697801452,0.02171182,3232.8,3232.1,5.59201866]
[1767697801621,0.02171182,3233.0,3232.3,0.99826653]
[1767697801823,0.02171182,3232.8,3232.3,0.99826653]
[1767697802022,0.00386653,3232.8,3232.4,0.99826653]
[1767697802256,0.02171182,3232.7,3232.4,0.99826653]
[1767697802562,0.02171182,3233.0,3232.8,0.01387974]
[1767697802766,0.41645057,3233.0,3232.8,0.01387974]
[1767697803131,0.02171182,3233.0,3232.8,0.01387974]
[1767697804561,0.02171182,3232.8,3232.3,0.99826653]
[1767697804761,0.02171182,3233.0,3232.3,0.99826653]
[1767697804957,0.02171182,3232.8,3232.3,0.99826653]
[1767697805254,0.02171182,3233.2,3232.9,0.99826653]
[1767697805464,0.02171182,3233.2,3232.7,0.99826653]
[1767697805768,0.002,3233.6,3233.2,0.99826653]
[1767697806074,0.02171182,3233.4,3233.0,5.59201866]
[1767697806231,0.02171182,3233.4,3233.1,0.99826653]
[1767697806431,0.02171182,3233.6,3233.1,0.99826653]
[1767697806742,0.02171182,3233.8,3233.1,0.99826653]
[1767697807063,0.37095186,3235.0,3233.8,0.99826653]
[1767697807262,0.1,3235.0,3234.1,0.99826653]
[1767697807470,0.1,3235.0,3233.1,9.43902013]
[1767697807471,0.11997154,3234.9,3233.7,0.811]
[1767697807635,0.1,3235.0,3233.8,0.99826653]
[1767697807835,0.1,3235.0,3233.9,4.59375213]
[1767697808175,0.1,3235.0,3234.6,0.99826653]
[1767697808331,0.1,3235.0,3234.0,0.99826653]
[1767697808531,3.19119032,3235.0,3234.0,0.99826653]
[1767697808730,0.11997154,3234.9,3233.7,4.59375213]
[1767697808944,0.11997154,3234.9,3233.7,5.59201866]
[1767697809145,0.45108773,3234.8,3233.8,0.99826653]
[1767697809752,0.45108773,3234.8,3233.5,0.99826653]
[1767697809753,0.11997154,3234.7,3233.5,0.99826653]
[1767697810071,0.11997154,3234.7,3232.5,0.16]
[1767697810072,0.33111619,3234.8,3233.9,0.99826653]
[1767697810278,0.33111619,3234.8,3234.2,0.9972655]
[1767697810478,0.1,3235.0,3234.2,0.9972655]
[1767697811273,3.19120976,3235.0,3234.2,0.9972655]
[1767697811478,0.1,3235.0,3234.2,0.9972655]
[1767697812374,4e-08,3235.0,3234.7,0.99826653]
[1767697812745,3.09080793,3235.4,3235.0,0.01809261]
[1767697812947,0.12097257,3235.2,3234.1,0.99826653]
[1767697813153,0.69925435,3235.3,3234.1,0.99826653]
[1767697813471,0.002,3234.5,3234.1,0.99826653]
[1767697813673,0.12097257,3235.2,3234.0,0.99826653]
[1767697813975,0.002,3234.8,3234.0,0.99826653]
[1767697815050,0.002,3234.8,3233.7,1.80826653]
[1767697815252,0.002,3234.8,3233.8,0.99826653]
[1767697815986,0.002,3234.8,3234.0,0.99826653]
[1767697816656,0.69925435,3235.3,3234.8,0.99826653]
[1767697816982,6.18175594,3235.4,3234.8,0.99826653]
[1767697817765,3.09087797,3235.4,3234.8,0.99826653]
[1767697817965,3.09087797,3235.4,3234.3,0.99826653]
[1767697818172,3.90172386,3235.5,3234.3,0.99826653]
[1767697818474,0.39017239,3235.4,3234.3,0.99826653]
[1767697818873,3.48102891,3235.4,3234.3,0.99826653]
[1767697819991,6.57188543,3235.4,3234.3,0.99826653]
[1767697820593,6.694858,3235.4,3234.4,0.99826653]
[1767697822075,6.57188543,3235.4,3234.4,0.99826653]
[1767697822276,0.73828854,3235.3,3234.4,0.99826653]
[1767697822493,0.12297257,3235.2,3233.7,0.99826653]
[1767697824199,9.27328365,3235.1,3233.7,0.99826653]
[1767697824566,0.12297257,3235.0,3233.7,0.99826653]
[1767697824770,0.93297257,3234.9,3233.7,0.99826653]
[1767697826182,6.18276244,3234.8,3234.0,0.99426653]
[1767697826487,6.18276244,3234.8,3234.0,0.98826653]
[1767697826488,0.69927624,3234.7,3234.0,0.98826653]
[1767697826692,0.69927624,3234.7,3234.0,0.98126653]
[1767697827001,1.50927624,3234.7,3234.0,0.97726653]
[1767697828177,0.14397257,3234.4,3233.5,0.99826653]
[1767697828377,3.09166795,3234.5,3233.5,0.99826653]
[1767697828717,3.9015044,3234.7,3233.5,0.99826653]
[1767697828718,3.09160463,3234.6,3233.5,0.99826653]
[1767697828912,6.18320926,3234.6,3233.5,0.99826653]
[1767697829780,0.02171182,3234.5,3233.5,0.99826653]
[1767697829974,0.62049211,3234.4,3233.5,0.99826653]
[1767697830576,3.71226838,3234.4,3233.7,0.99826653]
[1767697831302,0.62049211,3234.4,3233.7,0.99826653]
[1767697831594,3.71226227,3234.4,3233.7,0.99826653]
[1767697831797,0.62049211,3234.4,3233.7,0.99826653]
[1767697831999,0.37122059,3234.3,3233.7,0.99826653]
[1767697832196,3.71226858,3234.4,3233.7,0.99826653]
[1767697832920,6.80404505,3234.4,3233.7,0.99826653]
[1767697833501,3.71226858,3234.4,3233.7,0.99826653]
[1767697833706,0.96275403,3234.3,3233.4,0.001]
[1767697833912,0.98446585,3234.2,3233.0,0.95364079]